[Event "Holiday Invitational-IM 2019"]
[Site "Charlotte"]
[Date "2019.12.30"]
[Round "7.3"]
[White "Diulger, Alexey"]
[Black "Bregadze, Levan"]
[Result "0-1"]
[ECO "A15"]
[WhiteElo "2291"]
[BlackElo "2458"]
[Annotator "RC"]
[PlyCount "116"]
[EventDate "2019.12.26"]
[EventType "tourn"]
[EventCountry "USA"]
[SourceTitle "playchess.com"]
[Source "ChessBase"]
[SourceQuality "1"]
[TimeControl "5400+30"]

1. Nf3 {[%emt 0:00:00]} Nf6 {[%emt 0:00:00]} 2. g3 {[%emt 0:00:00]} g6 {[%emt 0:00:09]} 3. b3 {[%emt 0:00:00]} d6 {[%emt 0:00:40]} 4. Bb2 {[%emt 0:00:24]} e5 {[%emt 0:00:29]} 5. Bg2 {[%emt 0:00:40]} Bg7 {[%emt 0:00:12]} 6. O-O {[%emt 0:00:17]} O-O {[%emt 0:00:11]} 7. c4 {[%emt 0:00:38]} Re8 {[%emt 0:04:17]} 8. Nc3 {[%emt 0:08:13]} Nc6 {[%emt 0:01:25]} 9. d3 {[%emt 0:08:07]} h6 {[%emt 0:03:26]} 10. Qd2 {[%emt 0:02:41]} Be6 {[%emt 0:02:13]} 11. e4 {[%emt 0:00:29]} Qd7 {[%emt 0:00:44]} 12. Nd5 {[%emt 0:00:16]} Nh7 {[%emt 0:00:47]} 13. a4 {[%emt 0:07:49]} Nd8 {[%emt 0:09:09]} 14. a5 {[%emt 0:00:36]} c6 {[%emt 0:00:13]} 15. Nc3 {[%emt 0:02:14]} Bh3 {[%emt 0:01:32]} 16. a6 {[%emt 0:00:38]} Bxg2 {[%emt 0:00:07]} 17. Kxg2 {[%emt 0:00:25]} b6 {[%emt 0:00:08]} 18. b4 {[%emt 0:00:45]} Ne6 {[%emt 0:00:04]} 19. b5 {[%emt 0:03:10]} c5 {[%emt 0:06:42]} 20. Nd5 {[%emt 0:00:39]} Nf6 {[%emt 0:01:46]} 21. Nxf6+ {[%emt 0:01:09]} Bxf6 {[%emt 0:00:04]} 22. h3 {[%emt 0:04:29]} Bg7 {[%emt 0:00:13]} 23. Nh4 {[%emt 0:00:56]} Ng5 {[%emt 0:00:47]} 24. Rh1 {[%emt 0:06:01]} Ne6 {[%emt 0:08:15]} 25. Rae1 {[%emt 0:03:25]} Qe7 {[%emt 0:01:33]} 26. Rhf1 {[%emt 0:04:03]} Rf8 {[%emt 0:00:11]} 27. Bc1 {[%emt 0:02:22]} Rae8 {[%emt 0:00:27]} 28. Qd1 {[%emt 0:01:33]} Kh7 {[%emt 0:00:30]} 29. Qg4 {[%emt 0:01:37]} Bf6 {[%emt 0:00:34]} 30. f4 {[%emt 0:11:30]} h5 {[%emt 0:07:14]} 31. Qf3 {[%emt 0:00:23]} Bxh4 {[%emt 0:00:14]} 32. gxh4 {[%emt 0:00:02]} Qxh4 {[%emt 0:00:10]} 33. Qg3 {[%emt 0:00:49]} Qxg3+ {[%emt 0:00:23]} 34. Kxg3 {[%emt 0:00:02]} Nxf4 {[%emt 0:00:44]} 35. Bxf4 {[%emt 0:00:05]} exf4+ {[%emt 0:00:02]} 36. Rxf4 {[%emt 0:00:17]} Kg7 {[%emt 0:00:12]} 37. Ref1 {[%emt 0:02:56]} f6 {[%emt 0:00:29]} 38. h4 {[%emt 0:00:56]} Re5 {[%emt 0:00:53]} 39. Rd1 {[%emt 0:01:58]} f5 {[%emt 0:01:47]} 40. d4 {[%emt 0:03:59]} Rxe4 {[%emt 0:00:49]} 41. dxc5 {[%emt 0:00:08]} dxc5 {[%emt 0:00:07]} 42. Rxe4 {[%emt 0:09:23]} fxe4 {[%emt 0:00:04]} 43. Rd5 {[%emt 0:03:43]} Rf3+ {[%emt 0:01:08]} 44. Kg2 {[%emt 0:00:02]} Rf4 {[%emt 0:02:53]} 45. Kg3 {[%emt 0:00:41]} Rf3+ {[%emt 0:00:01]} 46. Kg2 {[%emt 0:00:02]} Rf5 {[%emt 0:00:07]} 47. Rd8 {[%emt 0:00:37]} Kf6 {[%emt 0:04:56]} 48. Rd6+ {[%emt 0:03:01]} Ke5 {[%emt 0:02:52]} 49. Rd7 {[%emt 0:00:42]} e3 {[%emt 0:00:19]} 50. Rxa7 {[%emt 0:00:11]} Kd4 {[%emt 0:00:04]} 51. Re7 {[%emt 0:01:08]} Rf8 {[%emt 0:00:24]} 52. Re6 {[%emt 0:01:17]} Kxc4 {[%emt 0:00:22]} 53. Rxb6 {[%emt 0:00:24]} e2 {[%emt 0:00:11]} 54. Re6 {[%emt 0:00:25]} Kxb5 {[%emt 0:00:04]} 55. a7 {[%emt 0:00:25]} Ra8 {[%emt 0:00:09]} 56. Kf2 {[%emt 0:00:45]} Rxa7 {[%emt 0:00:05]} 57. Rxg6 {[%emt 0:00:09]} Re7 {[%emt 0:00:03]} 58. Ke1 {[%emt 0:00:19]} Re4 {[%emt 0:00:08]} 0-1

[Event "Holiday Invitational-IM 2019"]
[Site "Charlotte"]
[Date "2019.12.30"]
[Round "8.1"]
[White "Kolay, Alex"]
[Black "Furfine, Jacob"]
[Result "0-1"]
[ECO "A58"]
[WhiteElo "2261"]
[BlackElo "2302"]
[Annotator "NA"]
[PlyCount "86"]
[EventDate "2019.12.26"]
[EventType "tourn"]
[EventCountry "USA"]
[SourceTitle "playchess.com"]
[Source "ChessBase"]
[SourceQuality "1"]
[TimeControl "5400+30"]

1. d4 {[%emt 0:00:00]} Nf6 {[%emt 0:01:18]} 2. c4 {[%emt 0:00:00]} c5 {[%emt 0:00:09]} 3. d5 {[%emt 0:00:00]} b5 {[%emt 0:00:05]} 4. cxb5 {[%emt 0:00:00]} a6 {[%emt 0:00:17]} 5. bxa6 {[%emt 0:00:05]} e6 {[%emt 0:00:05]} 6. Nc3 {[%emt 0:02:46]} exd5 {[%emt 0:00:16]} 7. Nxd5 {[%emt 0:00:51]} Be7 {[%emt 0:00:10]} 8. Bf4 {[%emt 0:19:44]} Nxd5 {[%emt 0:01:35]} 9. Qxd5 {[%emt 0:00:07]} Nc6 {[%emt 0:00:05]} 10. Bd2 {[%emt 0:04:31]} Bxa6 {[%emt 0:03:10]} 11. e3 {[%emt 0:05:06]} Bb7 {[%emt 0:06:45]} 12. Qb3 {[%emt 0:09:14]} Rb8 {[%emt 0:12:06]} 13. Nf3 {[%emt 0:05:29]} O-O {[%emt 0:01:15]} 14. Qc2 {[%emt 0:01:25]} Qb6 {[%emt 0:03:40]} 15. Bd3 {[%emt 0:21:22]} Nb4 {[%emt 0:02:29]} 16. Bxb4 {[%emt 0:00:07]} Qxb4+ {[%emt 0:00:12]} 17. Kf1 {[%emt 0:00:06]} h6 {[%emt 0:06:30]} 18. b3 {[%emt 0:13:58]} Ra8 {[%emt 0:02:09]} 19. Nd2 {[%emt 0:02:13]} d5 {[%emt 0:02:22]} 20. h3 {[%emt 0:03:57]} Ra3 {[%emt 0:02:08]} 21. Nb1 {[%emt 0:00:54]} Ra5 {[%emt 0:01:12]} 22. a3 {[%emt 0:00:20]} Qb6 {[%emt 0:00:38]} 23. Ra2 {[%emt 0:01:18]} Rfa8 {[%emt 0:01:12]} 24. Ke2 {[%emt 0:01:46]} Kh8 {[%emt 0:07:59]} 25. Rc1 {[%emt 0:06:15]} R5a7 {[%emt 0:02:33]} 26. Kf1 {[%emt 0:00:32]} Qd6 {[%emt 0:00:48]} 27. Kg1 {[%emt 0:00:23]} Qe5 {[%emt 0:01:55]} 28. Qe2 {[%emt 0:00:26]} Bd6 {[%emt 0:02:11]} 29. f4 {[%emt 0:00:16]} Qf6 {[%emt 0:00:41]} 30. Qf2 {[%emt 0:00:18]} d4 {[%emt 0:01:39]} 31. exd4 {[%emt 0:00:17]} cxd4 {[%emt 0:01:24]} 32. Rf1 {[%emt 0:00:10]} Bd5 {[%emt 0:02:14]} 33. Bc4 {[%emt 0:00:24]} Bxc4 {[%emt 0:00:55]} 34. bxc4 {[%emt 0:00:01]} Qf5 {[%emt 0:00:01]} 35. Qf3 {[%emt 0:00:59]} Qe6 {[%emt 0:05:12]} 36. Qd3 {[%emt 0:00:42]} Bc5 {[%emt 0:00:37]} 37. Kh1 {[%emt 0:00:46]} Re8 {[%emt 0:01:08]} 38. Rb2 {[%emt 0:01:24]} Ra4 {[%emt 0:01:12]} 39. Rc2 {[%emt 0:00:38]} f5 {[%emt 0:00:52]} 40. Kh2 {[%emt 0:00:29]} Qe4 {[%emt 0:00:47]} 41. Rd2 {[%emt 0:00:25]} Rb8 {[%emt 0:00:43]} 42. g3 {[%emt 0:00:37]} Ra7 {[%emt 0:00:45]} 43. Rdd1 {[%emt 0:00:36]} Rb2+ {[%emt 0:00:19]} 0-1

[Event "Holiday Invitational-IM 2019"]
[Site "Charlotte"]
[Date "2019.12.30"]
[Round "8.2"]
[White "Myers, Dominique"]
[Black "Cervantes Landeiro, Thalia"]
[Result "0-1"]
[ECO "C67"]
[WhiteElo "2012"]
[BlackElo "2289"]
[Annotator "NA"]
[PlyCount "120"]
[EventDate "2019.12.26"]
[EventType "tourn"]
[EventCountry "USA"]
[SourceTitle "playchess.com"]
[Source "ChessBase"]
[SourceQuality "1"]
[TimeControl "5400+30"]

1. e4 {[%emt 0:08:41]} e5 {[%emt 0:00:00]} 2. Nf3 {[%emt 0:00:27]} Nc6 {[%emt 0:00:00]} 3. Bb5 {[%emt 0:00:07]} Nf6 {[%emt 0:00:00]} 4. O-O {[%emt 0:03:56]} Nxe4 {[%emt 0:00:56]} 5. Re1 {[%emt 0:00:11]} Nd6 {[%emt 0:00:10]} 6. Nxe5 {[%emt 0:00:11]} Be7 {[%emt 0:00:28]} 7. Bf1 {[%emt 0:00:08]} Nf5 {[%emt 0:01:28]} 8. c3 {[%emt 0:00:49]} Nxe5 {[%emt 0:00:51]} 9. Rxe5 {[%emt 0:00:08]} d6 {[%emt 0:00:07]} 10. Re1 {[%emt 0:00:07]} O-O {[%emt 0:00:56]} 11. d4 {[%emt 0:00:07]} d5 {[%emt 0:00:11]} 12. Nd2 {[%emt 0:00:27]} Nh4 {[%emt 0:04:55]} 13. h3 {[%emt 0:04:15]} Be6 {[%emt 0:06:44]} 14. Bd3 {[%emt 0:00:50]} Bd6 {[%emt 0:03:21]} 15. Nf3 {[%emt 0:01:40]} Qf6 {[%emt 0:12:05]} 16. Nxh4 {[%emt 0:01:41]} Qxh4 {[%emt 0:00:17]} 17. Qf3 {[%emt 0:00:09]} Rae8 {[%emt 0:09:06]} 18. Bd2 {[%emt 0:00:15]} c6 {[%emt 0:02:37]} 19. Re2 {[%emt 0:00:10]} h5 {[%emt 0:20:53]} 20. Ree1 {[%emt 0:04:43]} Bg4 {[%emt 0:02:33]} 21. Bg5 {[%emt 0:02:38]} Qxg5 {[%emt 0:01:36]} 22. hxg4 {[%emt 0:00:07]} hxg4 {[%emt 0:01:15]} 23. Qf5 {[%emt 0:00:11]} Qxf5 {[%emt 0:03:05]} 24. Bxf5 {[%emt 0:00:08]} g3 {[%emt 0:00:15]} 25. Kf1 {[%emt 0:00:32]} g6 {[%emt 0:01:21]} 26. Bd3 {[%emt 0:00:20]} Bf4 {[%emt 0:04:24]} 27. Rad1 {[%emt 0:02:23]} Kg7 {[%emt 0:03:12]} 28. fxg3 {[%emt 0:03:32]} Bxg3 {[%emt 0:00:16]} 29. Rxe8 {[%emt 0:00:14]} Rxe8 {[%emt 0:00:04]} 30. c4 {[%emt 0:00:15]} dxc4 {[%emt 0:02:34]} 31. Bxc4 {[%emt 0:00:10]} Re4 {[%emt 0:00:22]} 32. Be2 {[%emt 0:00:48]} Rf4+ {[%emt 0:03:33]} 33. Bf3 {[%emt 0:01:02]} g5 {[%emt 0:00:40]} 34. d5 {[%emt 0:00:10]} g4 {[%emt 0:00:24]} 35. d6 {[%emt 0:01:06]} gxf3 {[%emt 0:00:41]} 36. d7 {[%emt 0:00:06]} fxg2+ {[%emt 0:00:18]} 37. Kxg2 {[%emt 0:00:06]} Bh4 {[%emt 0:00:06]} 38. d8=Q {[%emt 0:00:17]} Bxd8 {[%emt 0:00:05]} 39. Rxd8 {[%emt 0:00:06]} Rc4 {[%emt 0:00:22]} 40. Rd2 {[%emt 0:00:29]} Kg6 {[%emt 0:00:24]} 41. Kf3 {[%emt 0:00:07]} a5 {[%emt 0:01:30]} 42. Rd7 {[%emt 0:00:46]} b5 {[%emt 0:00:15]} 43. Ra7 {[%emt 0:00:40]} a4 {[%emt 0:01:07]} 44. Ke3 {[%emt 0:00:20]} Rc2 {[%emt 0:01:22]} 45. Rc7 {[%emt 0:01:01]} Rxb2 {[%emt 0:00:21]} 46. Rxc6+ {[%emt 0:00:06]} Kg5 {[%emt 0:00:13]} 47. Rb6 {[%emt 0:00:27]} f5 {[%emt 0:01:02]} 48. Kf3 {[%emt 0:00:09]} Rxa2 {[%emt 0:00:29]} 49. Rxb5 {[%emt 0:00:07]} Ra3+ {[%emt 0:00:08]} 50. Kf2 {[%emt 0:00:17]} Kg4 {[%emt 0:00:42]} 51. Ra5 {[%emt 0:00:52]} Ra2+ {[%emt 0:00:21]} 52. Kf1 {[%emt 0:00:06]} f4 {[%emt 0:00:50]} 53. Ra8 {[%emt 0:00:32]} Kf3 {[%emt 0:01:04]} 54. Kg1 {[%emt 0:00:06]} Ra1+ {[%emt 0:03:08]} 55. Kh2 {[%emt 0:00:06]} Kf2 {[%emt 0:00:11]} 56. Rf8 {[%emt 0:00:31]} f3 {[%emt 0:00:23]} 57. Ra8 {[%emt 0:00:27]} Ra3 {[%emt 0:00:36]} 58. Ra7 {[%emt 0:00:59]} Ke2 {[%emt 0:12:43]} 59. Rf7 {[%emt 0:00:51]} f2 {[%emt 0:00:00]} 60. Kg2 {[%emt 0:03:37]} f1=Q+ {[%emt 0:00:00]} 0-1

[Event "Holiday Invitational-IM 2019"]
[Site "Charlotte"]
[Date "2019.12.30"]
[Round "8.3"]
[White "Bregadze, Levan"]
[Black "Andrianov, Nikolai"]
[Result "1/2-1/2"]
[ECO "D02"]
[WhiteElo "2458"]
[BlackElo "2417"]
[Annotator "ChessBase"]
[PlyCount "53"]
[EventDate "2019.12.26"]
[EventType "tourn"]
[EventCountry "USA"]
[SourceTitle "playchess.com"]
[Source "ChessBase"]
[SourceQuality "1"]
[TimeControl "5400+30"]

1. d4 {[%emt 0:04:06]} d5 {[%emt 0:00:58]} 2. Nf3 {[%emt 0:00:50]} Nf6 {[%emt 0:00:20]} 3. Bf4 {[%emt 0:00:39]} c5 {[%emt 0:00:52]} 4. e3 {[%emt 0:00:08]} Nc6 {[%emt 0:01:54]} 5. c3 {[%emt 0:02:39]} Qb6 {[%emt 0:02:44]} 6. Qc2 {[%emt 0:07:34]} Bf5 {[%emt 0:03:44]} 7. dxc5 {[%emt 0:05:26]} Bxc2 {[%emt 0:00:52]} 8. cxb6 {[%emt 0:00:03]} Bxb1 {[%emt 0:02:10]} 9. Rxb1 {[%emt 0:00:20]} axb6 {[%emt 0:00:02]} 10. a3 {[%emt 0:01:14]} e6 {[%emt 0:00:53]} 11. Bb5 {[%emt 0:01:19]} Bc5 {[%emt 0:00:54]} 12. Ne5 {[%emt 0:01:09]} Rc8 {[%emt 0:00:24]} 13. h3 {[%emt 0:09:46]} Ke7 {[%emt 0:01:08]} 14. Nd3 {[%emt 0:12:33]} Bd6 {[%emt 0:00:33]} 15. Bxd6+ {[%emt 0:00:10]} Kxd6 {[%emt 0:00:02]} 16. Ke2 {[%emt 0:01:23]} Ne4 {[%emt 0:04:03]} 17. Rhd1 {[%emt 0:01:29]} Ke7 {[%emt 0:04:30]} 18. f3 {[%emt 0:00:21]} Nd6 {[%emt 0:00:11]} 19. Ba4 {[%emt 0:00:16]} f5 {[%emt 0:00:12]} 20. Rbc1 {[%emt 0:02:41]} Rhd8 {[%emt 0:00:56]} 21. Bc2 {[%emt 0:04:35]} Na5 {[%emt 0:01:29]} 22. h4 {[%emt 0:02:28]} Nac4 {[%emt 0:03:23]} 23. Rb1 {[%emt 0:01:18]} g6 {[%emt 0:00:45]} 24. Nf2 {[%emt 0:01:39]} Nf7 {[%emt 0:07:20]} 25. g3 {[%emt 0:04:30]} Nfe5 {[%emt 0:04:32]} 26. Bd3 {[%emt 0:01:23]} h6 {[%emt 0:01:33]} 27. Bxc4 {[%emt 0:00:06]} 1/2-1/2

[Event "Holiday Invitational-IM 2019"]
[Site "Charlotte"]
[Date "2019.12.30"]
[Round "8.4"]
[White "Ludwig, John"]
[Black "Diulger, Alexey"]
[Result "1-0"]
[ECO "B06"]
[WhiteElo "2360"]
[BlackElo "2291"]
[Annotator "NA"]
[PlyCount "95"]
[EventDate "2019.12.26"]
[EventType "tourn"]
[EventCountry "USA"]
[SourceTitle "playchess.com"]
[Source "ChessBase"]
[SourceQuality "1"]
[TimeControl "5400+30"]

1. e4 {[%emt 0:00:00]} g6 {[%emt 0:00:42]} 2. d4 {[%emt 0:00:00]} Bg7 {[%emt 0:00:17]} 3. Nc3 {[%emt 0:00:01]} d6 {[%emt 0:00:45]} 4. f4 {[%emt 0:00:30]} c6 {[%emt 0:02:36]} 5. Be3 {[%emt 0:04:26]} d5 {[%emt 0:01:05]} 6. e5 {[%emt 0:00:06]} h5 {[%emt 0:00:54]} 7. Qd2 {[%emt 0:00:48]} Nh6 {[%emt 0:00:25]} 8. Nf3 {[%emt 0:01:05]} Bg4 {[%emt 0:00:51]} 9. Nh4 {[%emt 0:02:00]} Nf5 {[%emt 0:03:43]} 10. Nxf5 {[%emt 0:00:47]} Bxf5 {[%emt 0:00:02]} 11. O-O-O {[%emt 0:01:37]} Nd7 {[%emt 0:00:47]} 12. g3 {[%emt 0:03:14]} b5 {[%emt 0:00:16]} 13. Bd3 {[%emt 0:04:08]} Nb6 {[%emt 0:01:27]} 14. b3 {[%emt 0:01:59]} e6 {[%emt 0:08:17]} 15. Bxf5 {[%emt 0:11:28]} exf5 {[%emt 0:01:27]} 16. Ne2 {[%emt 0:00:42]} a5 {[%emt 0:01:28]} 17. Kb1 {[%emt 0:02:10]} a4 {[%emt 0:04:53]} 18. Nc1 {[%emt 0:01:00]} h4 {[%emt 0:14:04]} 19. Nd3 {[%emt 0:03:54]} h3 {[%emt 0:01:24]} 20. Qe2 {[%emt 0:04:52]} Qc8 {[%emt 0:03:39]} 21. Bd2 {[%emt 0:01:28]} O-O {[%emt 0:01:48]} 22. Bb4 {[%emt 0:02:20]} Re8 {[%emt 0:00:55]} 23. Nf2 {[%emt 0:01:45]} Nd7 {[%emt 0:02:52]} 24. Nxh3 {[%emt 0:01:04]} Nf6 {[%emt 0:05:24]} 25. Nf2 {[%emt 0:03:00]} axb3 {[%emt 0:01:14]} 26. cxb3 {[%emt 0:02:16]} Ra6 {[%emt 0:00:02]} 27. h4 {[%emt 0:06:55]} Qe6 {[%emt 0:00:46]} 28. Rd2 {[%emt 0:01:49]} Nh5 {[%emt 0:04:06]} 29. Qf3 {[%emt 0:00:44]} Bh6 {[%emt 0:01:54]} 30. Nd3 {[%emt 0:00:47]} Qc8 {[%emt 0:01:01]} 31. Bd6 {[%emt 0:01:40]} Qd8 {[%emt 0:02:35]} 32. Nb4 {[%emt 0:01:34]} Rb6 {[%emt 0:00:47]} 33. Rc2 {[%emt 0:02:20]} Nf6 {[%emt 0:00:24]} 34. Bc5 {[%emt 0:03:00]} Ne4 {[%emt 0:00:13]} 35. Bxb6 {[%emt 0:04:11]} Qxb6 {[%emt 0:00:03]} 36. Qe3 {[%emt 0:01:29]} Bf8 {[%emt 0:01:22]} 37. Nd3 {[%emt 0:01:06]} Nf6 {[%emt 0:00:35]} 38. Nf2 {[%emt 0:02:23]} Re6 {[%emt 0:04:00]} 39. h5 {[%emt 0:03:38]} Nxh5 {[%emt 0:01:57]} 40. g4 {[%emt 0:00:11]} Ng7 {[%emt 0:01:05]} 41. Qh3 {[%emt 0:00:12]} f6 {[%emt 0:00:09]} 42. exf6 {[%emt 0:10:23]} Qxd4 {[%emt 0:00:44]} 43. Nd3 {[%emt 0:00:29]} Qxf6 {[%emt 0:05:40]} 44. Ne5 {[%emt 0:00:20]} Rxe5 {[%emt 0:00:02]} 45. fxe5 {[%emt 0:00:07]} Qxe5 {[%emt 0:00:25]} 46. gxf5 {[%emt 0:00:21]} Nh5 {[%emt 0:01:43]} 47. fxg6 {[%emt 0:01:33]} Bg7 {[%emt 0:00:01]} 48. Qc8+ {[%emt 0:00:43]} 1-0

[Event "Holiday Invitational-IM 2019"]
[Site "Charlotte"]
[Date "2019.12.30"]
[Round "8.5"]
[White "Gauri, Shankar"]
[Black "Francisco, Richard"]
[Result "0-1"]
[ECO "A35"]
[WhiteElo "2341"]
[BlackElo "2281"]
[Annotator "NA"]
[PlyCount "122"]
[EventDate "2019.12.26"]
[EventType "tourn"]
[EventCountry "USA"]
[SourceTitle "playchess.com"]
[Source "ChessBase"]
[SourceQuality "1"]
[TimeControl "5400+30"]

1. Nf3 {[%emt 0:06:37]} c5 {[%emt 0:00:00]} 2. c4 {[%emt 0:06:29]} Nc6 {[%emt 0:00:04]} 3. Nc3 {[%emt 0:00:06]} g6 {[%emt 0:00:22]} 4. e3 {[%emt 0:00:48]} Nf6 {[%emt 0:00:14]} 5. d4 {[%emt 0:00:51]} cxd4 {[%emt 0:00:09]} 6. exd4 {[%emt 0:00:03]} d5 {[%emt 0:00:12]} 7. cxd5 {[%emt 0:00:34]} Nxd5 {[%emt 0:00:06]} 8. Bc4 {[%emt 0:01:04]} Nxc3 {[%emt 0:00:13]} 9. Qb3 {[%emt 0:00:49]} e6 {[%emt 0:02:24]} 10. bxc3 {[%emt 0:00:31]} Bg7 {[%emt 0:00:14]} 11. Ba3 {[%emt 0:04:12]} Bf8 {[%emt 0:00:10]} 12. Bc1 {[%emt 0:01:18]} Bg7 {[%emt 0:00:09]} 13. Ba3 {[%emt 0:09:42]} Bf8 {[%emt 0:02:40]} 14. Bxf8 {[%emt 0:02:42]} Kxf8 {[%emt 0:00:10]} 15. O-O {[%emt 0:00:18]} Kg7 {[%emt 0:01:11]} 16. Be2 {[%emt 0:01:11]} Qf6 {[%emt 0:09:14]} 17. Qb5 {[%emt 0:10:34]} Rd8 {[%emt 0:02:19]} 18. Rad1 {[%emt 0:05:17]} Rd5 {[%emt 0:04:29]} 19. Qb2 {[%emt 0:00:02]} b6 {[%emt 0:05:53]} 20. Nd2 {[%emt 0:01:31]} Bb7 {[%emt 0:05:44]} 21. Ne4 {[%emt 0:09:31]} Qd8 {[%emt 0:05:53]} 22. c4 {[%emt 0:11:00]} Rxd4 {[%emt 0:00:45]} 23. c5 {[%emt 0:00:16]} e5 {[%emt 0:02:58]} 24. Nd6 {[%emt 0:00:29]} Rb8 {[%emt 0:08:05]} 25. f4 {[%emt 0:09:01]} bxc5 {[%emt 0:09:44]} 26. fxe5 {[%emt 0:03:46]} Ba6 {[%emt 0:01:30]} 27. Qc2 {[%emt 0:11:40]} Nxe5 {[%emt 0:05:11]} 28. Nf5+ {[%emt 0:03:06]} gxf5 {[%emt 0:01:12]} 29. Qxc5 {[%emt 0:00:31]} Nc6 {[%emt 0:11:29]} 30. Rxd4 {[%emt 0:00:25]} Qxd4+ {[%emt 0:01:09]} 31. Qxd4+ {[%emt 0:00:02]} Nxd4 {[%emt 0:00:06]} 32. Bxa6 {[%emt 0:00:02]} Rb4 {[%emt 0:05:06]} 33. Bd3 {[%emt 0:00:32]} f4 {[%emt 0:01:34]} 34. Rf2 {[%emt 0:00:53]} Ra4 {[%emt 0:04:11]} 35. Kf1 {[%emt 0:00:58]} Ra3 {[%emt 0:00:38]} 36. Rd2 {[%emt 0:00:37]} Nc6 {[%emt 0:03:08]} 37. Kf2 {[%emt 0:00:30]} Ne5 {[%emt 0:00:20]} 38. Be2 {[%emt 0:00:07]} Kf6 {[%emt 0:01:15]} 39. h3 {[%emt 0:00:02]} Kf5 {[%emt 0:00:39]} 40. Rb2 {[%emt 0:01:21]} a5 {[%emt 0:01:28]} 41. Bb5 {[%emt 0:00:03]} Ke4 {[%emt 0:01:17]} 42. Re2+ {[%emt 0:00:52]} Kd4 {[%emt 0:00:20]} 43. Rd2+ {[%emt 0:00:08]} Kc3 {[%emt 0:00:39]} 44. Re2 {[%emt 0:00:25]} f6 {[%emt 0:00:22]} 45. Be8 {[%emt 0:01:03]} Kd4 {[%emt 0:00:55]} 46. Bb5 {[%emt 0:00:12]} h5 {[%emt 0:02:31]} 47. Rd2+ {[%emt 0:00:47]} Kc3 {[%emt 0:00:26]} 48. Ke2 {[%emt 0:00:23]} h4 {[%emt 0:00:56]} 49. Ba6 {[%emt 0:00:35]} Ra4 {[%emt 0:00:25]} 50. Bb7 {[%emt 0:00:28]} Rb4 {[%emt 0:00:13]} 51. Bd5 {[%emt 0:00:29]} Rd4 {[%emt 0:00:55]} 52. Rxd4 {[%emt 0:00:06]} Kxd4 {[%emt 0:00:03]} 53. Bb3 {[%emt 0:00:17]} Kc3 {[%emt 0:00:13]} 54. Bd1 {[%emt 0:01:13]} f5 {[%emt 0:01:21]} 55. a4 {[%emt 0:00:30]} f3+ {[%emt 0:01:10]} 56. gxf3 {[%emt 0:00:16]} f4 {[%emt 0:00:05]} 57. Kf1 {[%emt 0:00:44]} Kd2 {[%emt 0:00:31]} 58. Be2 {[%emt 0:00:30]} Ke3 {[%emt 0:00:16]} 59. Bd1 {[%emt 0:00:26]} Nxf3 {[%emt 0:00:10]} 60. Kg2 {[%emt 0:00:33]} Nd2 {[%emt 0:00:16]} 61. Kh2 {[%emt 0:00:31]} f3 {[%emt 0:00:23]} 0-1

[Event "Holiday Invitational-IM 2019"]
[Site "Charlotte"]
[Date "2019.12.31"]
[Round "9.1"]
[White "Cervantes Landeiro, Thalia"]
[Black "Kolay, Alex"]
[Result "1-0"]
[ECO "E14"]
[WhiteElo "2289"]
[BlackElo "2261"]
[Annotator "ChessBase"]
[PlyCount "69"]
[EventDate "2019.12.26"]
[EventType "tourn"]
[EventCountry "USA"]
[SourceTitle "playchess.com"]
[Source "ChessBase"]
[SourceQuality "1"]
[TimeControl "5400+30"]

1. d4 {[%emt 0:00:00]} d5 {[%emt 0:00:24]} 2. c4 {[%emt 0:00:00]} c6 {[%emt 0:00:06]} 3. Nf3 {[%emt 0:00:00]} Nf6 {[%emt 0:00:06]} 4. e3 {[%emt 0:00:00]} e6 {[%emt 0:00:05]} 5. b3 {[%emt 0:00:00]} Nbd7 {[%emt 0:00:07]} 6. Bb2 {[%emt 0:00:06]} Bd6 {[%emt 0:00:09]} 7. Nbd2 {[%emt 0:00:13]} O-O {[%emt 0:00:13]} 8. Bd3 {[%emt 0:00:07]} b6 {[%emt 0:00:11]} 9. O-O {[%emt 0:00:12]} Bb7 {[%emt 0:00:07]} 10. Qe2 {[%emt 0:00:10]} c5 {[%emt 0:02:19]} 11. cxd5 {[%emt 0:03:48]} exd5 {[%emt 0:00:15]} 12. Ba6 {[%emt 0:00:08]} Bxa6 {[%emt 0:06:29]} 13. Qxa6 {[%emt 0:00:09]} Qc8 {[%emt 0:00:03]} 14. Qe2 {[%emt 0:02:57]} Re8 {[%emt 0:00:14]} 15. a4 {[%emt 0:03:53]} Qb7 {[%emt 0:11:05]} 16. a5 {[%emt 0:02:56]} Ne4 {[%emt 0:02:15]} 17. Rfd1 {[%emt 0:06:03]} Qc6 {[%emt 0:10:42]} 18. Rac1 {[%emt 0:05:04]} Bc7 {[%emt 0:01:59]} 19. Nf1 {[%emt 0:03:44]} Nf8 {[%emt 0:28:12]} 20. dxc5 {[%emt 0:05:07]} bxc5 {[%emt 0:00:08]} 21. b4 {[%emt 0:00:27]} c4 {[%emt 0:01:28]} 22. Nd4 {[%emt 0:00:48]} Qd7 {[%emt 0:02:45]} 23. Qh5 {[%emt 0:03:59]} Be5 {[%emt 0:04:38]} 24. Ng3 {[%emt 0:07:44]} Nxg3 {[%emt 0:11:06]} 25. hxg3 {[%emt 0:00:16]} Rad8 {[%emt 0:00:18]} 26. Bc3 {[%emt 0:02:50]} a6 {[%emt 0:00:44]} 27. Ne2 {[%emt 0:01:12]} Qd6 {[%emt 0:05:20]} 28. Qf5 {[%emt 0:05:31]} Ng6 {[%emt 0:07:22]} 29. Rb1 {[%emt 0:05:15]} Qe6 {[%emt 0:00:43]} 30. Qc2 {[%emt 0:08:15]} Qc6 {[%emt 0:02:17]} 31. Bxe5 {[%emt 0:03:57]} Nxe5 {[%emt 0:00:29]} 32. Nf4 {[%emt 0:00:10]} Ng6 {[%emt 0:03:01]} 33. Rd4 {[%emt 0:06:58]} Nxf4 {[%emt 0:00:11]} 34. gxf4 {[%emt 0:00:06]} Re4 {[%emt 0:00:44]} 35. Qxe4 {[%emt 0:00:27]} 1-0